Workbook

Sheet pokoj 1
C1: Výpočet tepelné zátěže
B4: - (tato pole vyplnit)
A5: Objem místnosti | D5: šířka (m) | F5: délka (m) | H5: výška (m) | J5: (m3)
D6: 4 | E6: x | F6: 5.3 | G6: x | H6: 2.5 | I6: = | J6: =D6*F6*H6 -> 53
B7: plochy:(m2)
C8: podlaha/strop: | D8: =D6*F6 -> 21.2 | G8: dlouhá stěna: | H8: =F6*H6 -> 13.25 | K8: krátká stěna: | L8: =D6*H6 -> 10
A10: 1. Osluněná okna a vnější dveře
B11: žaluzie | D11: šířka (m) | E11: x | F11: výška (m) | G11: x | H11: počet | I11: = | J11: (m2) | K11: x | L11: faktor | M11: = | N11: Watt | U11: faktor (žaluzie)
A12: 1.1 | B12: jih | C12: J | E12: x | G12: x | I12: = | J12: =D12*F12*H12 -> 0 | K12: x | L12: =IF(W12=1,T12,IF(W12=2,U12,IF(W12=3,V12,0))) -> 110 | M12: = | N12: =L12*J12 -> 0 | T12: 230 | U12: 110 | V12: 60 | W12: 2 | Y12: bez
A13: 1.2 | B13: jihozápad | C13: JZ | D13: 2.5 | E13: x | F13: 2.4 | G13: x | H13: 1 | I13: = | J13: =D13*F13*H13 -> 6 | K13: x | L13: =IF(W13=1,T13,IF(W13=2,U13,IF(W13=3,V13,0))) -> 85 | M13: = | N13: =L13*J13 -> 510 | T13: 370 | U13: 150 | V13: 85 | W13: 3 | Y13: vnitřní
A14: 1.3 | B14: jihovýchod | C14: JV | E14: x | G14: x | I14: = | J14: 0 | K14: x | L14: 230 | M14: = | N14: 0 | T14: 230 | U14: 110 | V14: 50 | W14: 1 | Y14: vnější
A15: 1.4 | B15: severozápad | C15: SZ | E15: x | G15: x | I15: = | J15: 0 | K15: x | L15: 140 | M15: = | N15: 0 | T15: 350 | U15: 140 | V15: 110 | W15: 2
A16: 1.5 | B16: severovýchod | C16: SV | E16: x | G16: x | I16: = | J16: 0 | K16: x | L16: 170 | M16: = | N16: 0 | T16: 170 | U16: 70 | V16: 60 | W16: 1
A17: 1.6 | B17: západ | C17: Z | E17: x | G17: x | I17: = | J17: 0 | K17: x | L17: 130 | M17: = | N17: 0 | T17: 490 | U17: 210 | V17: 130 | W17: 3
A18: 1.7 | B18: východ | C18: V | E18: x | G18: x | I18: = | J18: 0 | K18: x | L18: 130 | M18: = | N18: 0 | T18: 260 | U18: 130 | V18: 80 | W18: 2
B20: (počítá se jen nejvýšší hodnota) | N20: =MAXA(N12:N18) -> 510
A22: 2. Ostatní okna a vnější dveře
F23: (m2) | H23: (m2) | J23: (m2) | N23: Watt
B24: (mimo části 1.) | G24: + | I24: + | K24: x | L24: 30 | M24: = | N24: =L24*(J24+H24+F24) -> 0
A26: 3. Osluněné vnější stěny (orientace dle části 1.)
F27: (m2) | H27: (m2) | J27: (m2) | N27: Watt
A28: 3.1 | B28: Lehké konstrukce (dřevo, plasty...) | G28: + | I28: + | K28: x | L28: 45 | M28: = | N28: =L28*(J28+H28+F28) -> 0
A29: 3.2 | B29: Těžké konstrukce (cihla, beton...) | G29: + | I29: + | K29: x | L29: 30 | M29: = | N29: =L29*(J29+H29+F29) -> 0
A31: 4. Ostatní vnitřní a vnější stěny
F32: (m2) | H32: (m2) | J32: (m2) | N32: Watt
B33: (mimo části 2.) | G33: + | I33: + | K33: x | L33: 20 | M33: = | N33: =L33*(J33+H33+F33) -> 0
A35: 5. Strop a střecha
H36: (m2) | N36: Watt
A37: 5.1 | B37: Strop pod neklimatizovanou místností | K37: x | L37: 7 | M37: = | N37: =L37*H37 -> 0
A38: 5.2 | B38: Strop pod podkrovím | K38: x | L38: 35 | M38: = | N38: =L38*H38 -> 0
A39: 5.3 | B39: Strop izolovaný (cca 5cm izolace) | K39: x | L39: 23 | M39: = | N39: =L39*H39 -> 0
A40: 5.4 | B40: Plochá střecha neizolovaná | K40: x | L40: 60 | M40: = | N40: =L40*H40 -> 0
A41: 5.5 | B41: Plochá střecha izolovaná (cca 5cm izolace) | K41: x | L41: 25 | M41: = | N41: =L41*H41 -> 0
A43: 6. Podlaha nad neklimatizovanou místností
H44: (m2) | N44: Watt
B45: (nepočítat v případě nevytápěného suterénu) | K45: x | L45: 10 | M45: = | N45: =L45*H45 -> 0
A47: 7. Osoby
H48: (počet) | N48: Watt
H49: 2 | K49: x | L49: 200 | M49: = | N49: =L49*H49 -> 400
A51: 8. Příkon elektrického zařízení
H52: (Watt) | N52: Watt
A53: 8.1 | B53: Osvětlení | K53: x | L53: 0.2 | N53: =L53*H53 -> 0
A54: 8.2 | B54: Stroje a přístroje ( výrobní nástroje, počítače, …) | K54: x | L54: 0.2 | N54: =L54*H54 -> 0
A55: 8.3 | B55: Ostatní | K55: x | L55: 1 | M55: = | N55: =L55*H55 -> 0
A57: 9. Dveře do neklimatizovaných místností
H58: (m2) | N58: Watt
K59: x | L59: 200 | M59: = | N59: =L59*H59 -> 0
A61: 10. Celková tepelná zátěž | K61: (KiloWatt) | M61: = | N61: =CEILING((N59+N55+N54+N53+N49+N45+N41+N40+N39+N38+N37+N33+N29+N28+N24+N20)/1000,0.1) -> 1

Sheet pokoj 2
C1: Výpočet tepelné zátěže
B4: - (tato pole vyplnit)
A5: Objem místnosti | D5: šířka (m) | F5: délka (m) | H5: výška (m) | J5: (m3)
D6: 4 | E6: x | F6: 5.3 | G6: x | H6: 2.5 | I6: = | J6: =D6*F6*H6 -> 53
B7: plochy:(m2)
C8: podlaha/strop: | D8: =D6*F6 -> 21.2 | G8: dlouhá stěna: | H8: =F6*H6 -> 13.25 | K8: krátká stěna: | L8: =D6*H6 -> 10
A10: 1. Osluněná okna a vnější dveře
B11: žaluzie | D11: šířka (m) | E11: x | F11: výška (m) | G11: x | H11: počet | I11: = | J11: (m2) | K11: x | L11: faktor | M11: = | N11: Watt | U11: faktor (žaluzie)
A12: 1.1 | B12: jih | C12: J | E12: x | G12: x | I12: = | J12: =D12*F12*H12 -> 0 | K12: x | L12: =IF(W12=1,T12,IF(W12=2,U12,IF(W12=3,V12,0))) -> 110 | M12: = | N12: =L12*J12 -> 0 | T12: 230 | U12: 110 | V12: 60 | W12: 2 | Y12: bez
A13: 1.2 | B13: jihozápad | C13: JZ | D13: 2.5 | E13: x | F13: 2.4 | G13: x | H13: 1 | I13: = | J13: =D13*F13*H13 -> 6 | K13: x | L13: =IF(W13=1,T13,IF(W13=2,U13,IF(W13=3,V13,0))) -> 85 | M13: = | N13: =L13*J13 -> 510 | T13: 370 | U13: 150 | V13: 85 | W13: 3 | Y13: vnitřní
A14: 1.3 | B14: jihovýchod | C14: JV | E14: x | G14: x | I14: = | J14: 0 | K14: x | L14: 230 | M14: = | N14: 0 | T14: 230 | U14: 110 | V14: 50 | W14: 1 | Y14: vnější
A15: 1.4 | B15: severozápad | C15: SZ | E15: x | G15: x | I15: = | J15: 0 | K15: x | L15: 140 | M15: = | N15: 0 | T15: 350 | U15: 140 | V15: 110 | W15: 2
A16: 1.5 | B16: severovýchod | C16: SV | E16: x | G16: x | I16: = | J16: 0 | K16: x | L16: 170 | M16: = | N16: 0 | T16: 170 | U16: 70 | V16: 60 | W16: 1
A17: 1.6 | B17: západ | C17: Z | E17: x | G17: x | I17: = | J17: 0 | K17: x | L17: 130 | M17: = | N17: 0 | T17: 490 | U17: 210 | V17: 130 | W17: 3
A18: 1.7 | B18: východ | C18: V | E18: x | G18: x | I18: = | J18: 0 | K18: x | L18: 130 | M18: = | N18: 0 | T18: 260 | U18: 130 | V18: 80 | W18: 2
B20: (počítá se jen nejvýšší hodnota) | N20: =MAXA(N12:N18) -> 510
A22: 2. Ostatní okna a vnější dveře
F23: (m2) | H23: (m2) | J23: (m2) | N23: Watt
B24: (mimo části 1.) | G24: + | I24: + | K24: x | L24: 30 | M24: = | N24: =L24*(J24+H24+F24) -> 0
A26: 3. Osluněné vnější stěny (orientace dle části 1.)
F27: (m2) | H27: (m2) | J27: (m2) | N27: Watt
A28: 3.1 | B28: Lehké konstrukce (dřevo, plasty...) | G28: + | I28: + | K28: x | L28: 45 | M28: = | N28: =L28*(J28+H28+F28) -> 0
A29: 3.2 | B29: Těžké konstrukce (cihla, beton...) | G29: + | I29: + | K29: x | L29: 30 | M29: = | N29: =L29*(J29+H29+F29) -> 0
A31: 4. Ostatní vnitřní a vnější stěny
F32: (m2) | H32: (m2) | J32: (m2) | N32: Watt
B33: (mimo části 2.) | G33: + | I33: + | K33: x | L33: 20 | M33: = | N33: =L33*(J33+H33+F33) -> 0
A35: 5. Strop a střecha
H36: (m2) | N36: Watt
A37: 5.1 | B37: Strop pod neklimatizovanou místností | K37: x | L37: 7 | M37: = | N37: =L37*H37 -> 0
A38: 5.2 | B38: Strop pod podkrovím | K38: x | L38: 35 | M38: = | N38: =L38*H38 -> 0
A39: 5.3 | B39: Strop izolovaný (cca 5cm izolace) | K39: x | L39: 23 | M39: = | N39: =L39*H39 -> 0
A40: 5.4 | B40: Plochá střecha neizolovaná | K40: x | L40: 60 | M40: = | N40: =L40*H40 -> 0
A41: 5.5 | B41: Plochá střecha izolovaná (cca 5cm izolace) | K41: x | L41: 25 | M41: = | N41: =L41*H41 -> 0
A43: 6. Podlaha nad neklimatizovanou místností
H44: (m2) | N44: Watt
B45: (nepočítat v případě nevytápěného suterénu) | K45: x | L45: 10 | M45: = | N45: =L45*H45 -> 0
A47: 7. Osoby
H48: (počet) | N48: Watt
H49: 2 | K49: x | L49: 200 | M49: = | N49: =L49*H49 -> 400
A51: 8. Příkon elektrického zařízení
H52: (Watt) | N52: Watt
A53: 8.1 | B53: Osvětlení | K53: x | L53: 0.2 | N53: =L53*H53 -> 0
A54: 8.2 | B54: Stroje a přístroje ( výrobní nástroje, počítače, …) | K54: x | L54: 0.2 | N54: =L54*H54 -> 0
A55: 8.3 | B55: Ostatní | K55: x | L55: 1 | M55: = | N55: =L55*H55 -> 0
A57: 9. Dveře do neklimatizovaných místností
H58: (m2) | N58: Watt
K59: x | L59: 200 | M59: = | N59: =L59*H59 -> 0
A61: 10. Celková tepelná zátěž | K61: (KiloWatt) | M61: = | N61: =CEILING((N59+N55+N54+N53+N49+N45+N41+N40+N39+N38+N37+N33+N29+N28+N24+N20)/1000,0.1) -> 1

Sheet pracovna
C1: Výpočet tepelné zátěže
B4: - (tato pole vyplnit)
A5: Objem místnosti | D5: šířka (m) | F5: délka (m) | H5: výška (m) | J5: (m3)
D6: 3.5 | E6: x | F6: 3 | G6: x | H6: 2.5 | I6: = | J6: =D6*F6*H6 -> 26.25
B7: plochy:(m2)
C8: podlaha/strop: | D8: =D6*F6 -> 10.5 | G8: dlouhá stěna: | H8: =F6*H6 -> 7.5 | K8: krátká stěna: | L8: =D6*H6 -> 8.75
A10: 1. Osluněná okna a vnější dveře
B11: žaluzie | D11: šířka (m) | E11: x | F11: výška (m) | G11: x | H11: počet | I11: = | J11: (m2) | K11: x | L11: faktor | M11: = | N11: Watt | U11: faktor (žaluzie)
A12: 1.1 | B12: jih | C12: J | E12: x | G12: x | I12: = | J12: =D12*F12*H12 -> 0 | K12: x | L12: =IF(W12=1,T12,IF(W12=2,U12,IF(W12=3,V12,0))) -> 110 | M12: = | N12: =L12*J12 -> 0 | T12: 230 | U12: 110 | V12: 60 | W12: 2 | Y12: bez
A13: 1.2 | B13: jihozápad | C13: JZ | D13: 2.5 | E13: x | F13: 2.4 | G13: x | H13: 1 | I13: = | J13: =D13*F13*H13 -> 6 | K13: x | L13: =IF(W13=1,T13,IF(W13=2,U13,IF(W13=3,V13,0))) -> 85 | M13: = | N13: =L13*J13 -> 510 | T13: 370 | U13: 150 | V13: 85 | W13: 3 | Y13: vnitřní
A14: 1.3 | B14: jihovýchod | C14: JV | E14: x | G14: x | I14: = | J14: 0 | K14: x | L14: 230 | M14: = | N14: 0 | T14: 230 | U14: 110 | V14: 50 | W14: 1 | Y14: vnější
A15: 1.4 | B15: severozápad | C15: SZ | E15: x | G15: x | I15: = | J15: 0 | K15: x | L15: 140 | M15: = | N15: 0 | T15: 350 | U15: 140 | V15: 110 | W15: 2
A16: 1.5 | B16: severovýchod | C16: SV | E16: x | G16: x | I16: = | J16: 0 | K16: x | L16: 170 | M16: = | N16: 0 | T16: 170 | U16: 70 | V16: 60 | W16: 1
A17: 1.6 | B17: západ | C17: Z | E17: x | G17: x | I17: = | J17: 0 | K17: x | L17: 130 | M17: = | N17: 0 | T17: 490 | U17: 210 | V17: 130 | W17: 3
A18: 1.7 | B18: východ | C18: V | E18: x | G18: x | I18: = | J18: 0 | K18: x | L18: 130 | M18: = | N18: 0 | T18: 260 | U18: 130 | V18: 80 | W18: 2
B20: (počítá se jen nejvýšší hodnota) | N20: =MAXA(N12:N18) -> 510
A22: 2. Ostatní okna a vnější dveře
F23: (m2) | H23: (m2) | J23: (m2) | N23: Watt
B24: (mimo části 1.) | G24: + | I24: + | K24: x | L24: 30 | M24: = | N24: =L24*(J24+H24+F24) -> 0
A26: 3. Osluněné vnější stěny (orientace dle části 1.)
F27: (m2) | H27: (m2) | J27: (m2) | N27: Watt
A28: 3.1 | B28: Lehké konstrukce (dřevo, plasty...) | G28: + | I28: + | K28: x | L28: 45 | M28: = | N28: =L28*(J28+H28+F28) -> 0
A29: 3.2 | B29: Těžké konstrukce (cihla, beton...) | G29: + | I29: + | K29: x | L29: 30 | M29: = | N29: =L29*(J29+H29+F29) -> 0
A31: 4. Ostatní vnitřní a vnější stěny
F32: (m2) | H32: (m2) | J32: (m2) | N32: Watt
B33: (mimo části 2.) | G33: + | I33: + | K33: x | L33: 20 | M33: = | N33: =L33*(J33+H33+F33) -> 0
A35: 5. Strop a střecha
H36: (m2) | N36: Watt
A37: 5.1 | B37: Strop pod neklimatizovanou místností | K37: x | L37: 7 | M37: = | N37: =L37*H37 -> 0
A38: 5.2 | B38: Strop pod podkrovím | K38: x | L38: 35 | M38: = | N38: =L38*H38 -> 0
A39: 5.3 | B39: Strop izolovaný (cca 5cm izolace) | K39: x | L39: 23 | M39: = | N39: =L39*H39 -> 0
A40: 5.4 | B40: Plochá střecha neizolovaná | K40: x | L40: 60 | M40: = | N40: =L40*H40 -> 0
A41: 5.5 | B41: Plochá střecha izolovaná (cca 5cm izolace) | K41: x | L41: 25 | M41: = | N41: =L41*H41 -> 0
A43: 6. Podlaha nad neklimatizovanou místností
H44: (m2) | N44: Watt
B45: (nepočítat v případě nevytápěného suterénu) | K45: x | L45: 10 | M45: = | N45: =L45*H45 -> 0
A47: 7. Osoby
H48: (počet) | N48: Watt
H49: 1 | K49: x | L49: 200 | M49: = | N49: =L49*H49 -> 200
A51: 8. Příkon elektrického zařízení
H52: (Watt) | N52: Watt
A53: 8.1 | B53: Osvětlení | K53: x | L53: 0.2 | N53: =L53*H53 -> 0
A54: 8.2 | B54: Stroje a přístroje ( výrobní nástroje, počítače, …) | K54: x | L54: 0.2 | N54: =L54*H54 -> 0
A55: 8.3 | B55: Ostatní | K55: x | L55: 1 | M55: = | N55: =L55*H55 -> 0
A57: 9. Dveře do neklimatizovaných místností
H58: (m2) | N58: Watt
K59: x | L59: 200 | M59: = | N59: =L59*H59 -> 0
A61: 10. Celková tepelná zátěž | K61: (KiloWatt) | M61: = | N61: =CEILING((N59+N55+N54+N53+N49+N45+N41+N40+N39+N38+N37+N33+N29+N28+N24+N20)/1000,0.1) -> 0.8

Sheet ložnice
C1: Výpočet tepelné zátěže
B4: - (tato pole vyplnit)
A5: Objem místnosti | D5: šířka (m) | F5: délka (m) | H5: výška (m) | J5: (m3)
D6: 4.9 | E6: x | F6: 6 | G6: x | H6: 2.5 | I6: = | J6: =D6*F6*H6 -> 73.5
B7: plochy:(m2)
C8: podlaha/strop: | D8: =D6*F6 -> 29.4 | G8: dlouhá stěna: | H8: =F6*H6 -> 15 | K8: krátká stěna: | L8: =D6*H6 -> 12.25
A10: 1. Osluněná okna a vnější dveře
B11: žaluzie | D11: šířka (m) | E11: x | F11: výška (m) | G11: x | H11: počet | I11: = | J11: (m2) | K11: x | L11: faktor | M11: = | N11: Watt | U11: faktor (žaluzie)
A12: 1.1 | B12: jih | C12: J | E12: x | G12: x | I12: = | J12: =D12*F12*H12 -> 0 | K12: x | L12: =IF(W12=1,T12,IF(W12=2,U12,IF(W12=3,V12,0))) -> 110 | M12: = | N12: =L12*J12 -> 0 | T12: 230 | U12: 110 | V12: 60 | W12: 2 | Y12: bez
A13: 1.2 | B13: jihozápad | C13: JZ | E13: x | G13: x | I13: = | J13: =D13*F13*H13 -> 0 | K13: x | L13: =IF(W13=1,T13,IF(W13=2,U13,IF(W13=3,V13,0))) -> 370 | M13: = | N13: =L13*J13 -> 0 | T13: 370 | U13: 150 | V13: 85 | W13: 1 | Y13: vnitřní
A14: 1.3 | B14: jihovýchod | C14: JV | E14: x | G14: x | I14: = | J14: 0 | K14: x | L14: 230 | M14: = | N14: 0 | T14: 230 | U14: 110 | V14: 50 | W14: 1 | Y14: vnější
A15: 1.4 | B15: severozápad | C15: SZ | E15: x | G15: x | I15: = | J15: =D15*F15*H15 -> 0 | K15: x | L15: 110 | M15: = | N15: 0 | T15: 350 | U15: 140 | V15: 110 | W15: 3
A16: 1.5 | B16: severovýchod | C16: SV | D16: 2.5 | E16: x | F16: 2.4 | G16: x | H16: 1 | I16: = | J16: =D16*F16*H16 -> 6 | K16: x | L16: 60 | M16: = | N16: 360 | T16: 170 | U16: 70 | V16: 60 | W16: 3
A17: 1.6 | B17: západ | C17: Z | E17: x | G17: x | I17: = | J17: 0 | K17: x | L17: 130 | M17: = | N17: 0 | T17: 490 | U17: 210 | V17: 130 | W17: 3
A18: 1.7 | B18: východ | C18: V | E18: x | G18: x | I18: = | J18: 0 | K18: x | L18: 130 | M18: = | N18: 0 | T18: 260 | U18: 130 | V18: 80 | W18: 2
B20: (počítá se jen nejvýšší hodnota) | N20: =MAXA(N12:N18) -> 360
A22: 2. Ostatní okna a vnější dveře
F23: (m2) | H23: (m2) | J23: (m2) | N23: Watt
B24: (mimo části 1.) | G24: + | I24: + | K24: x | L24: 30 | M24: = | N24: =L24*(J24+H24+F24) -> 0
A26: 3. Osluněné vnější stěny (orientace dle části 1.)
F27: (m2) | H27: (m2) | J27: (m2) | N27: Watt
A28: 3.1 | B28: Lehké konstrukce (dřevo, plasty...) | G28: + | I28: + | K28: x | L28: 45 | M28: = | N28: =L28*(J28+H28+F28) -> 0
A29: 3.2 | B29: Těžké konstrukce (cihla, beton...) | G29: + | I29: + | K29: x | L29: 30 | M29: = | N29: =L29*(J29+H29+F29) -> 0
A31: 4. Ostatní vnitřní a vnější stěny
F32: (m2) | H32: (m2) | J32: (m2) | N32: Watt
B33: (mimo části 2.) | G33: + | I33: + | K33: x | L33: 20 | M33: = | N33: =L33*(J33+H33+F33) -> 0
A35: 5. Strop a střecha
H36: (m2) | N36: Watt
A37: 5.1 | B37: Strop pod neklimatizovanou místností | K37: x | L37: 7 | M37: = | N37: =L37*H37 -> 0
A38: 5.2 | B38: Strop pod podkrovím | K38: x | L38: 35 | M38: = | N38: =L38*H38 -> 0
A39: 5.3 | B39: Strop izolovaný (cca 5cm izolace) | K39: x | L39: 23 | M39: = | N39: =L39*H39 -> 0
A40: 5.4 | B40: Plochá střecha neizolovaná | K40: x | L40: 60 | M40: = | N40: =L40*H40 -> 0
A41: 5.5 | B41: Plochá střecha izolovaná (cca 5cm izolace) | K41: x | L41: 25 | M41: = | N41: =L41*H41 -> 0
A43: 6. Podlaha nad neklimatizovanou místností
H44: (m2) | N44: Watt
B45: (nepočítat v případě nevytápěného suterénu) | K45: x | L45: 10 | M45: = | N45: =L45*H45 -> 0
A47: 7. Osoby
H48: (počet) | N48: Watt
H49: 2 | K49: x | L49: 200 | M49: = | N49: =L49*H49 -> 400
A51: 8. Příkon elektrického zařízení
H52: (Watt) | N52: Watt
A53: 8.1 | B53: Osvětlení | K53: x | L53: 0.2 | N53: =L53*H53 -> 0
A54: 8.2 | B54: Stroje a přístroje ( výrobní nástroje, počítače, …) | K54: x | L54: 0.2 | N54: =L54*H54 -> 0
A55: 8.3 | B55: Ostatní | K55: x | L55: 1 | M55: = | N55: =L55*H55 -> 0
A57: 9. Dveře do neklimatizovaných místností
H58: (m2) | N58: Watt
K59: x | L59: 200 | M59: = | N59: =L59*H59 -> 0
A61: 10. Celková tepelná zátěž | K61: (KiloWatt) | M61: = | N61: =CEILING((N59+N55+N54+N53+N49+N45+N41+N40+N39+N38+N37+N33+N29+N28+N24+N20)/1000,0.1) -> 0.8

Sheet spodní kuchyň s obývákem
C1: Výpočet tepelné zátěže
B4: - (tato pole vyplnit)
A5: Objem místnosti | D5: šířka (m) | F5: délka (m) | H5: výška (m) | J5: (m3)
D6: 11.8 | E6: x | F6: 4.8 | G6: x | H6: 2.7 | I6: = | J6: =D6*F6*H6 -> 152.928
B7: plochy:(m2)
C8: podlaha/strop: | D8: =D6*F6 -> 56.64 | G8: dlouhá stěna: | H8: =F6*H6 -> 12.96 | K8: krátká stěna: | L8: =D6*H6 -> 31.86
A10: 1. Osluněná okna a vnější dveře
B11: žaluzie | D11: šířka (m) | E11: x | F11: výška (m) | G11: x | H11: počet | I11: = | J11: (m2) | K11: x | L11: faktor | M11: = | N11: Watt | U11: faktor (žaluzie)
A12: 1.1 | B12: jih | C12: J | E12: x | G12: x | I12: = | J12: =D12*F12*H12 -> 0 | K12: x | L12: =IF(W12=1,T12,IF(W12=2,U12,IF(W12=3,V12,0))) -> 230 | M12: = | N12: =L12*J12 -> 0 | T12: 230 | U12: 110 | V12: 60 | W12: 1 | Y12: bez
A13: 1.2 | B13: jihozápad | C13: JZ | D13: 2.66 | E13: x | F13: 2.5 | G13: x | H13: 3 | I13: = | J13: =D13*F13*H13 -> 19.95 | K13: x | L13: =IF(W13=1,T13,IF(W13=2,U13,IF(W13=3,V13,0))) -> 85 | M13: = | N13: =L13*J13 -> 1695.75 | T13: 370 | U13: 150 | V13: 85 | W13: 3 | Y13: vnitřní
A14: 1.3 | B14: jihovýchod | C14: JV | E14: x | G14: x | I14: = | J14: 0 | K14: x | L14: 230 | M14: = | N14: 0 | T14: 230 | U14: 110 | V14: 50 | W14: 1 | Y14: vnější
A15: 1.4 | B15: severozápad | C15: SZ | E15: x | G15: x | I15: = | J15: 0 | K15: x | L15: 350 | M15: = | N15: 0 | T15: 350 | U15: 140 | V15: 110 | W15: 1
A16: 1.5 | B16: severovýchod | C16: SV | E16: x | G16: x | I16: = | J16: 0 | K16: x | L16: 170 | M16: = | N16: 0 | T16: 170 | U16: 70 | V16: 60 | W16: 1
A17: 1.6 | B17: západ | C17: Z | E17: x | G17: x | I17: = | J17: 0 | K17: x | L17: 490 | M17: = | N17: 0 | T17: 490 | U17: 210 | V17: 130 | W17: 1
A18: 1.7 | B18: východ | C18: V | D18: 0.5 | E18: x | F18: 1.9 | G18: x | H18: 1 | I18: = | J18: 0.95 | K18: x | L18: 80 | M18: = | N18: 76 | T18: 260 | U18: 130 | V18: 80 | W18: 3
B20: (počítá se jen nejvýšší hodnota) | N20: =MAXA(N12:N18) -> 1695.75
A22: 2. Ostatní okna a vnější dveře
F23: (m2) | H23: (m2) | J23: (m2) | N23: Watt
B24: (mimo části 1.) | G24: + | I24: + | K24: x | L24: 30 | M24: = | N24: =L24*(J24+H24+F24) -> 0
A26: 3. Osluněné vnější stěny (orientace dle části 1.)
F27: (m2) | H27: (m2) | J27: (m2) | N27: Watt
A28: 3.1 | B28: Lehké konstrukce (dřevo, plasty...) | G28: + | I28: + | K28: x | L28: 45 | M28: = | N28: =L28*(J28+H28+F28) -> 0
A29: 3.2 | B29: Těžké konstrukce (cihla, beton...) | G29: + | I29: + | K29: x | L29: 30 | M29: = | N29: =L29*(J29+H29+F29) -> 0
A31: 4. Ostatní vnitřní a vnější stěny
F32: (m2) | H32: (m2) | J32: (m2) | N32: Watt
B33: (mimo části 2.) | G33: + | I33: + | K33: x | L33: 20 | M33: = | N33: =L33*(J33+H33+F33) -> 0
A35: 5. Strop a střecha
H36: (m2) | N36: Watt
A37: 5.1 | B37: Strop pod neklimatizovanou místností | K37: x | L37: 7 | M37: = | N37: =L37*H37 -> 0
A38: 5.2 | B38: Strop pod podkrovím | K38: x | L38: 35 | M38: = | N38: =L38*H38 -> 0
A39: 5.3 | B39: Strop izolovaný (cca 5cm izolace) | K39: x | L39: 23 | M39: = | N39: =L39*H39 -> 0
A40: 5.4 | B40: Plochá střecha neizolovaná | K40: x | L40: 60 | M40: = | N40: =L40*H40 -> 0
A41: 5.5 | B41: Plochá střecha izolovaná (cca 5cm izolace) | K41: x | L41: 25 | M41: = | N41: =L41*H41 -> 0
A43: 6. Podlaha nad neklimatizovanou místností
H44: (m2) | N44: Watt
B45: (nepočítat v případě nevytápěného suterénu) | K45: x | L45: 10 | M45: = | N45: =L45*H45 -> 0
A47: 7. Osoby
H48: (počet) | N48: Watt
H49: 4 | K49: x | L49: 200 | M49: = | N49: =L49*H49 -> 800
A51: 8. Příkon elektrického zařízení
H52: (Watt) | N52: Watt
A53: 8.1 | B53: Osvětlení | K53: x | L53: 0.2 | N53: =L53*H53 -> 0
A54: 8.2 | B54: Stroje a přístroje ( výrobní nástroje, počítače, …) | K54: x | L54: 0.2 | N54: =L54*H54 -> 0
A55: 8.3 | B55: Ostatní | K55: x | L55: 1 | M55: = | N55: =L55*H55 -> 0
A57: 9. Dveře do neklimatizovaných místností
H58: (m2) | N58: Watt
K59: x | L59: 200 | M59: = | N59: =L59*H59 -> 0
A61: 10. Celková tepelná zátěž | K61: (KiloWatt) | M61: = | N61: =CEILING((N59+N55+N54+N53+N49+N45+N41+N40+N39+N38+N37+N33+N29+N28+N24+N20)/1000,0.1) -> 2.5

Sheet spodní pokoj 1
C1: Výpočet tepelné zátěže
B4: - (tato pole vyplnit)
A5: Objem místnosti | D5: šířka (m) | F5: délka (m) | H5: výška (m) | J5: (m3)
D6: 3.5 | E6: x | F6: 4.8 | G6: x | H6: 2.7 | I6: = | J6: =D6*F6*H6 -> 45.36
B7: plochy:(m2)
C8: podlaha/strop: | D8: =D6*F6 -> 16.8 | G8: dlouhá stěna: | H8: =F6*H6 -> 12.96 | K8: krátká stěna: | L8: =D6*H6 -> 9.45
A10: 1. Osluněná okna a vnější dveře
B11: žaluzie | D11: šířka (m) | E11: x | F11: výška (m) | G11: x | H11: počet | I11: = | J11: (m2) | K11: x | L11: faktor | M11: = | N11: Watt | U11: faktor (žaluzie)
A12: 1.1 | B12: jih | C12: J | E12: x | G12: x | I12: = | J12: =D12*F12*H12 -> 0 | K12: x | L12: =IF(W12=1,T12,IF(W12=2,U12,IF(W12=3,V12,0))) -> 110 | M12: = | N12: =L12*J12 -> 0 | T12: 230 | U12: 110 | V12: 60 | W12: 2 | Y12: bez
A13: 1.2 | B13: jihozápad | C13: JZ | E13: x | G13: x | I13: = | J13: =D13*F13*H13 -> 0 | K13: x | L13: =IF(W13=1,T13,IF(W13=2,U13,IF(W13=3,V13,0))) -> 370 | M13: = | N13: =L13*J13 -> 0 | T13: 370 | U13: 150 | V13: 85 | W13: 1 | Y13: vnitřní
A14: 1.3 | B14: jihovýchod | C14: JV | E14: x | G14: x | I14: = | J14: 0 | K14: x | L14: 230 | M14: = | N14: 0 | T14: 230 | U14: 110 | V14: 50 | W14: 1 | Y14: vnější
A15: 1.4 | B15: severozápad | C15: SZ | E15: x | G15: x | I15: = | J15: 0 | K15: x | L15: 140 | M15: = | N15: 0 | T15: 350 | U15: 140 | V15: 110 | W15: 2
A16: 1.5 | B16: severovýchod | C16: SV | D16: 1.2 | E16: x | F16: 1.5 | G16: x | H16: 1 | I16: = | J16: 1.8 | K16: x | L16: 60 | M16: = | N16: 108 | T16: 170 | U16: 70 | V16: 60 | W16: 3
A17: 1.6 | B17: západ | C17: Z | E17: x | G17: x | I17: = | J17: 0 | K17: x | L17: 130 | M17: = | N17: 0 | T17: 490 | U17: 210 | V17: 130 | W17: 3
A18: 1.7 | B18: východ | C18: V | E18: x | G18: x | I18: = | J18: 0 | K18: x | L18: 130 | M18: = | N18: 0 | T18: 260 | U18: 130 | V18: 80 | W18: 2
B20: (počítá se jen nejvýšší hodnota) | N20: =MAXA(N12:N18) -> 108
A22: 2. Ostatní okna a vnější dveře
F23: (m2) | H23: (m2) | J23: (m2) | N23: Watt
B24: (mimo části 1.) | G24: + | I24: + | K24: x | L24: 30 | M24: = | N24: =L24*(J24+H24+F24) -> 0
A26: 3. Osluněné vnější stěny (orientace dle části 1.)
F27: (m2) | H27: (m2) | J27: (m2) | N27: Watt
A28: 3.1 | B28: Lehké konstrukce (dřevo, plasty...) | G28: + | I28: + | K28: x | L28: 45 | M28: = | N28: =L28*(J28+H28+F28) -> 0
A29: 3.2 | B29: Těžké konstrukce (cihla, beton...) | G29: + | I29: + | K29: x | L29: 30 | M29: = | N29: =L29*(J29+H29+F29) -> 0
A31: 4. Ostatní vnitřní a vnější stěny
F32: (m2) | H32: (m2) | J32: (m2) | N32: Watt
B33: (mimo části 2.) | G33: + | I33: + | K33: x | L33: 20 | M33: = | N33: =L33*(J33+H33+F33) -> 0
A35: 5. Strop a střecha
H36: (m2) | N36: Watt
A37: 5.1 | B37: Strop pod neklimatizovanou místností | K37: x | L37: 7 | M37: = | N37: =L37*H37 -> 0
A38: 5.2 | B38: Strop pod podkrovím | K38: x | L38: 35 | M38: = | N38: =L38*H38 -> 0
A39: 5.3 | B39: Strop izolovaný (cca 5cm izolace) | K39: x | L39: 23 | M39: = | N39: =L39*H39 -> 0
A40: 5.4 | B40: Plochá střecha neizolovaná | K40: x | L40: 60 | M40: = | N40: =L40*H40 -> 0
A41: 5.5 | B41: Plochá střecha izolovaná (cca 5cm izolace) | K41: x | L41: 25 | M41: = | N41: =L41*H41 -> 0
A43: 6. Podlaha nad neklimatizovanou místností
H44: (m2) | N44: Watt
B45: (nepočítat v případě nevytápěného suterénu) | K45: x | L45: 10 | M45: = | N45: =L45*H45 -> 0
A47: 7. Osoby
H48: (počet) | N48: Watt
H49: 2 | K49: x | L49: 200 | M49: = | N49: =L49*H49 -> 400
A51: 8. Příkon elektrického zařízení
H52: (Watt) | N52: Watt
A53: 8.1 | B53: Osvětlení | K53: x | L53: 0.2 | N53: =L53*H53 -> 0
A54: 8.2 | B54: Stroje a přístroje ( výrobní nástroje, počítače, …) | K54: x | L54: 0.2 | N54: =L54*H54 -> 0
A55: 8.3 | B55: Ostatní | K55: x | L55: 1 | M55: = | N55: =L55*H55 -> 0
A57: 9. Dveře do neklimatizovaných místností
H58: (m2) | N58: Watt
K59: x | L59: 200 | M59: = | N59: =L59*H59 -> 0
A61: 10. Celková tepelná zátěž | K61: (KiloWatt) | M61: = | N61: =CEILING((N59+N55+N54+N53+N49+N45+N41+N40+N39+N38+N37+N33+N29+N28+N24+N20)/1000,0.1) -> 0.6

Sheet spodní pokoj 2
C1: Výpočet tepelné zátěže
B4: - (tato pole vyplnit)
A5: Objem místnosti | D5: šířka (m) | F5: délka (m) | H5: výška (m) | J5: (m3)
D6: 2.9 | E6: x | F6: 4.8 | G6: x | H6: 2.7 | I6: = | J6: =D6*F6*H6 -> 37.584
B7: plochy:(m2)
C8: podlaha/strop: | D8: =D6*F6 -> 13.92 | G8: dlouhá stěna: | H8: =F6*H6 -> 12.96 | K8: krátká stěna: | L8: =D6*H6 -> 7.83
A10: 1. Osluněná okna a vnější dveře
B11: žaluzie | D11: šířka (m) | E11: x | F11: výška (m) | G11: x | H11: počet | I11: = | J11: (m2) | K11: x | L11: faktor | M11: = | N11: Watt | U11: faktor (žaluzie)
A12: 1.1 | B12: jih | C12: J | E12: x | G12: x | I12: = | J12: =D12*F12*H12 -> 0 | K12: x | L12: =IF(W12=1,T12,IF(W12=2,U12,IF(W12=3,V12,0))) -> 110 | M12: = | N12: =L12*J12 -> 0 | T12: 230 | U12: 110 | V12: 60 | W12: 2 | Y12: bez
A13: 1.2 | B13: jihozápad | C13: JZ | E13: x | G13: x | I13: = | J13: =D13*F13*H13 -> 0 | K13: x | L13: =IF(W13=1,T13,IF(W13=2,U13,IF(W13=3,V13,0))) -> 370 | M13: = | N13: =L13*J13 -> 0 | T13: 370 | U13: 150 | V13: 85 | W13: 1 | Y13: vnitřní
A14: 1.3 | B14: jihovýchod | C14: JV | E14: x | G14: x | I14: = | J14: 0 | K14: x | L14: 230 | M14: = | N14: 0 | T14: 230 | U14: 110 | V14: 50 | W14: 1 | Y14: vnější
A15: 1.4 | B15: severozápad | C15: SZ | E15: x | G15: x | I15: = | J15: 0 | K15: x | L15: 140 | M15: = | N15: 0 | T15: 350 | U15: 140 | V15: 110 | W15: 2
A16: 1.5 | B16: severovýchod | C16: SV | E16: x | G16: x | I16: = | J16: 0 | K16: x | L16: 170 | M16: = | N16: 0 | T16: 170 | U16: 70 | V16: 60 | W16: 1
A17: 1.6 | B17: západ | C17: Z | E17: x | G17: x | I17: = | J17: 0 | K17: x | L17: 130 | M17: = | N17: 0 | T17: 490 | U17: 210 | V17: 130 | W17: 3
A18: 1.7 | B18: východ | C18: V | D18: 2.1 | E18: x | F18: 1.5 | G18: x | H18: 1 | I18: = | J18: 3.15 | K18: x | L18: 80 | M18: = | N18: 252 | T18: 260 | U18: 130 | V18: 80 | W18: 3
B20: (počítá se jen nejvýšší hodnota) | N20: =MAXA(N12:N18) -> 252
A22: 2. Ostatní okna a vnější dveře
F23: (m2) | H23: (m2) | J23: (m2) | N23: Watt
B24: (mimo části 1.) | G24: + | I24: + | K24: x | L24: 30 | M24: = | N24: =L24*(J24+H24+F24) -> 0
A26: 3. Osluněné vnější stěny (orientace dle části 1.)
F27: (m2) | H27: (m2) | J27: (m2) | N27: Watt
A28: 3.1 | B28: Lehké konstrukce (dřevo, plasty...) | G28: + | I28: + | K28: x | L28: 45 | M28: = | N28: =L28*(J28+H28+F28) -> 0
A29: 3.2 | B29: Těžké konstrukce (cihla, beton...) | G29: + | I29: + | K29: x | L29: 30 | M29: = | N29: =L29*(J29+H29+F29) -> 0
A31: 4. Ostatní vnitřní a vnější stěny
F32: (m2) | H32: (m2) | J32: (m2) | N32: Watt
B33: (mimo části 2.) | G33: + | I33: + | K33: x | L33: 20 | M33: = | N33: =L33*(J33+H33+F33) -> 0
A35: 5. Strop a střecha
H36: (m2) | N36: Watt
A37: 5.1 | B37: Strop pod neklimatizovanou místností | K37: x | L37: 7 | M37: = | N37: =L37*H37 -> 0
A38: 5.2 | B38: Strop pod podkrovím | K38: x | L38: 35 | M38: = | N38: =L38*H38 -> 0
A39: 5.3 | B39: Strop izolovaný (cca 5cm izolace) | K39: x | L39: 23 | M39: = | N39: =L39*H39 -> 0
A40: 5.4 | B40: Plochá střecha neizolovaná | K40: x | L40: 60 | M40: = | N40: =L40*H40 -> 0
A41: 5.5 | B41: Plochá střecha izolovaná (cca 5cm izolace) | K41: x | L41: 25 | M41: = | N41: =L41*H41 -> 0
A43: 6. Podlaha nad neklimatizovanou místností
H44: (m2) | N44: Watt
B45: (nepočítat v případě nevytápěného suterénu) | K45: x | L45: 10 | M45: = | N45: =L45*H45 -> 0
A47: 7. Osoby
H48: (počet) | N48: Watt
H49: 2 | K49: x | L49: 200 | M49: = | N49: =L49*H49 -> 400
A51: 8. Příkon elektrického zařízení
H52: (Watt) | N52: Watt
A53: 8.1 | B53: Osvětlení | K53: x | L53: 0.2 | N53: =L53*H53 -> 0
A54: 8.2 | B54: Stroje a přístroje ( výrobní nástroje, počítače, …) | K54: x | L54: 0.2 | N54: =L54*H54 -> 0
A55: 8.3 | B55: Ostatní | K55: x | L55: 1 | M55: = | N55: =L55*H55 -> 0
A57: 9. Dveře do neklimatizovaných místností
H58: (m2) | N58: Watt
K59: x | L59: 200 | M59: = | N59: =L59*H59 -> 0
A61: 10. Celková tepelná zátěž | K61: (KiloWatt) | M61: = | N61: =CEILING((N59+N55+N54+N53+N49+N45+N41+N40+N39+N38+N37+N33+N29+N28+N24+N20)/1000,0.1) -> 0.7
